[Event "Titled Tuesday Blitz May 30 Early 2023"]
[White "Djordjevic, Vuk"]
[Black "Roberson, Peter T"]
[WhiteFideId "902098"]
[BlackFideId "412384"]
[WhiteElo "2452"]
[BlackElo "2346"]
[Result "1-0"]
[Round "08"]
[TimeControl "180+2"]
[Date "2023.05.30"]
[WhiteClock "0:00:02"]
[BlackClock "0:00:00"]

1. d4 {[%clk 0:03:00]}  Nf6 {[%clk 0:02:59]} 2. Bg5 {[%clk 0:02:56]}  Ne4 {[%clk 0:02:55]} 3. Bf4 {[%clk 0:02:56]}  d5 {[%clk 0:02:54]} 4. e3 {[%clk 0:02:57]}  c5 {[%clk 0:02:53]} 5. Bd3 {[%clk 0:02:55]}  Nc6 {[%clk 0:02:37]} 6. c3 {[%clk 0:02:55]}  Bf5 {[%clk 0:02:34]} 7. Nf3 {[%clk 0:02:50]}  e6 {[%clk 0:02:34]} 8. O-O {[%clk 0:02:50]}  Bd6 {[%clk 0:02:34]} 9. dxc5 {[%clk 0:02:39]}  Bxc5 {[%clk 0:02:27]} 10. Nd4 {[%clk 0:02:32]}  Bg6 {[%clk 0:02:21]} 11. Bb5 {[%clk 0:02:31]}  Qb6 {[%clk 0:02:14]} 12. Qa4 {[%clk 0:02:15]}  O-O {[%clk 0:02:09]} 13. b4 {[%clk 0:01:30]}  Bxd4 {[%clk 0:01:55]} 14. cxd4 {[%clk 0:01:18]}  Rfc8 {[%clk 0:01:23]} 15. f3 {[%clk 0:01:09]}  Nf6 {[%clk 0:01:18]} 16. Nd2 {[%clk 0:01:08]}  Nxb4 {[%clk 0:01:13]} 17. Qxb4 {[%clk 0:01:07]}  a6 {[%clk 0:01:12]} 18. a4 {[%clk 0:01:07]}  axb5 {[%clk 0:01:12]} 19. a5 {[%clk 0:00:52]}  Qa6 {[%clk 0:00:54]} 20. Nb3 {[%clk 0:00:48]}  Rc4 {[%clk 0:00:51]} 21. Qe7 {[%clk 0:00:48]}  Re8 {[%clk 0:00:49]} 22. Qa3 {[%clk 0:00:34]}  Nd7 {[%clk 0:00:38]} 23. Qd6 {[%clk 0:00:27]}  Qxd6 {[%clk 0:00:34]} 24. Bxd6 {[%clk 0:00:28]}  Rc3 {[%clk 0:00:35]} 25. Nc5 {[%clk 0:00:14]}  Nxc5 {[%clk 0:00:35]} 26. dxc5 {[%clk 0:00:14]}  Rxe3 {[%clk 0:00:36]} 27. c6 {[%clk 0:00:14]}  bxc6 {[%clk 0:00:33]} 28. a6 {[%clk 0:00:07]}  Ra8 {[%clk 0:00:33]} 29. Rfc1 {[%clk 0:00:06]}  b4 {[%clk 0:00:15]} 30. Rxc6 {[%clk 0:00:06]}  b3 {[%clk 0:00:15]} 31. Rb6 {[%clk 0:00:06]}  h6 {[%clk 0:00:05]} 32. a7 {[%clk 0:00:07]}  Kh7 {[%clk 0:00:03]} 33. Rb8 {[%clk 0:00:07]}  Rxa7 {[%clk 0:00:03]} 34. Rxa7 {[%clk 0:00:08]}  Re1+ {[%clk 0:00:01]} 35. Kf2 {[%clk 0:00:08]}  Rb1 {[%clk 0:00:02]} 36. Rab7 {[%clk 0:00:07]}  Bc2 {[%clk 0:00:01]} 37. Rxf7 {[%clk 0:00:04]}  Kg6 {[%clk 0:00:02]} 38. Rfb7 {[%clk 0:00:03]}  Rd1 {[%clk 0:00:02]} 39. Be5 {[%clk 0:00:04]}  Kf5 {[%clk 0:00:02]} 40. Bxg7 {[%clk 0:00:04]}  d4 {[%clk 0:00:02]} 41. Rf8+ {[%clk 0:00:05]}  Kg6 {[%clk 0:00:03]} 42. Rd8 {[%clk 0:00:04]}  b2 {[%clk 0:00:02]} 43. Rxb2 {[%clk 0:00:04]}  Rd2+ {[%clk 0:00:02]} 44. Ke1 {[%clk 0:00:05]}  Rd1+ {[%clk 0:00:03]} 45. Ke2 {[%clk 0:00:05]}  d3+ {[%clk 0:00:03]} 46. Rxd3 {[%clk 0:00:02]}  Kxg7 {[%clk 0:00:00]} 47. Rxc2 {[%clk 0:00:02]} 1-0


[Site "https://www.chess.com"]

[Event "Titled Tuesday Blitz May 30 Early 2023"]
[White "Csonka, Balazs"]
[Black "Gheorghiu, Calin"]
[WhiteFideId "742910"]
[BlackFideId "1200305"]
[WhiteElo "2404"]
[BlackElo "2223"]
[Result "1-0"]
[Round "08"]
[TimeControl "180+2"]
[Date "2023.05.30"]
[WhiteClock "0:00:10"]
[BlackClock "0:00:16"]

1. e4 {[%clk 0:03:00]}  e6 {[%clk 0:02:58]} 2. d4 {[%clk 0:03:00]}  d5 {[%clk 0:02:59]} 3. Nc3 {[%clk 0:03:01]}  Nf6 {[%clk 0:02:58]} 4. Bg5 {[%clk 0:02:58]}  h6 {[%clk 0:02:53]} 5. Bxf6 {[%clk 0:02:57]}  Qxf6 {[%clk 0:02:54]} 6. exd5 {[%clk 0:02:57]}  Bb4 {[%clk 0:02:54]} 7. Bc4 {[%clk 0:02:48]}  exd5 {[%clk 0:02:37]} 8. Bxd5 {[%clk 0:02:49]}  O-O {[%clk 0:02:28]} 9. Ne2 {[%clk 0:02:48]}  Nc6 {[%clk 0:02:28]} 10. O-O {[%clk 0:02:34]}  Rd8 {[%clk 0:02:25]} 11. Ne4 {[%clk 0:01:45]}  Qg6 {[%clk 0:01:53]} 12. Bxc6 {[%clk 0:01:23]}  Qxc6 {[%clk 0:01:48]} 13. N4g3 {[%clk 0:01:20]}  Bg4 {[%clk 0:01:39]} 14. c3 {[%clk 0:01:18]}  Bd6 {[%clk 0:01:38]} 15. Qc2 {[%clk 0:01:03]}  Re8 {[%clk 0:01:32]} 16. Rfe1 {[%clk 0:00:51]}  b5 {[%clk 0:01:23]} 17. f3 {[%clk 0:00:46]}  Be6 {[%clk 0:01:19]} 18. Ne4 {[%clk 0:00:46]}  Be7 {[%clk 0:01:19]} 19. Nf4 {[%clk 0:00:41]}  Bf5 {[%clk 0:01:19]} 20. Qb3 {[%clk 0:00:36]}  a5 {[%clk 0:01:12]} 21. Qd5 {[%clk 0:00:35]}  Bd7 {[%clk 0:00:58]} 22. Qxc6 {[%clk 0:00:33]}  Bxc6 {[%clk 0:00:58]} 23. Kf2 {[%clk 0:00:28]}  f5 {[%clk 0:00:55]} 24. Nc5 {[%clk 0:00:25]}  Bd6 {[%clk 0:00:43]} 25. Nfd3 {[%clk 0:00:18]}  Bd5 {[%clk 0:00:39]} 26. a3 {[%clk 0:00:14]}  g5 {[%clk 0:00:34]} 27. Ne5 {[%clk 0:00:13]}  Kg7 {[%clk 0:00:29]} 28. Ncd3 {[%clk 0:00:14]}  Re7 {[%clk 0:00:21]} 29. Re2 {[%clk 0:00:14]}  Rae8 {[%clk 0:00:21]} 30. Rae1 {[%clk 0:00:15]}  Bc4 {[%clk 0:00:20]} 31. Nxc4 {[%clk 0:00:14]}  bxc4 {[%clk 0:00:19]} 32. Rxe7+ {[%clk 0:00:14]}  Rxe7 {[%clk 0:00:18]} 33. Rxe7+ {[%clk 0:00:14]}  Bxe7 {[%clk 0:00:19]} 34. Ne5 {[%clk 0:00:14]}  Bd6 {[%clk 0:00:18]} 35. Nxc4 {[%clk 0:00:12]}  Bxh2 {[%clk 0:00:19]} 36. Nxa5 {[%clk 0:00:12]}  Bf4 {[%clk 0:00:19]} 37. Nc4 {[%clk 0:00:10]}  h5 {[%clk 0:00:19]} 38. a4 {[%clk 0:00:11]}  h4 {[%clk 0:00:19]} 39. a5 {[%clk 0:00:11]}  c6 {[%clk 0:00:16]} 40. a6 {[%clk 0:00:11]}  Bb8 {[%clk 0:00:17]} 41. Ne5 {[%clk 0:00:11]}  g4 {[%clk 0:00:16]} 42. fxg4 {[%clk 0:00:09]}  fxg4 {[%clk 0:00:16]} 43. Nxc6 {[%clk 0:00:09]}  h3 {[%clk 0:00:16]} 44. gxh3 {[%clk 0:00:10]}  gxh3 {[%clk 0:00:16]} 45. Nxb8 {[%clk 0:00:10]} 1-0


[Site "https://www.chess.com"]

[Event "Titled Tuesday Blitz May 30 Early 2023"]
[White "Moral Garcia, Serafin"]
[Black "Bolourchifard, Farzad"]
[WhiteFideId "2201925"]
[BlackFideId "12510084"]
[WhiteElo "2274"]
[BlackElo "2317"]
[Result "1-0"]
[Round "08"]
[TimeControl "180+2"]
[Date "2023.05.30"]
[WhiteClock "0:00:41"]
[BlackClock "0:00:00"]

1. e4 {[%clk 0:03:00]}  e5 {[%clk 0:02:58]} 2. Nf3 {[%clk 0:02:58]}  Nc6 {[%clk 0:02:58]} 3. Bb5 {[%clk 0:02:58]}  a6 {[%clk 0:02:59]} 4. Bxc6 {[%clk 0:02:58]}  dxc6 {[%clk 0:03:00]} 5. O-O {[%clk 0:02:58]}  f6 {[%clk 0:02:57]} 6. d4 {[%clk 0:02:58]}  exd4 {[%clk 0:02:57]} 7. Nxd4 {[%clk 0:02:57]}  c5 {[%clk 0:02:58]} 8. Ne2 {[%clk 0:02:57]}  Qxd1 {[%clk 0:02:58]} 9. Rxd1 {[%clk 0:02:58]}  Bd7 {[%clk 0:02:58]} 10. Nbc3 {[%clk 0:02:58]}  O-O-O {[%clk 0:02:59]} 11. f3 {[%clk 0:02:58]}  Ne7 {[%clk 0:02:54]} 12. Be3 {[%clk 0:02:55]}  b6 {[%clk 0:02:54]} 13. Nf4 {[%clk 0:02:55]}  Re8 {[%clk 0:02:45]} 14. Ncd5 {[%clk 0:02:52]}  Bc6 {[%clk 0:02:22]} 15. Rd2 {[%clk 0:02:49]}  g5 {[%clk 0:02:04]} 16. Nxe7+ {[%clk 0:02:43]}  Bxe7 {[%clk 0:02:04]} 17. Nd5 {[%clk 0:02:42]}  Bd8 {[%clk 0:01:53]} 18. Kf2 {[%clk 0:02:40]}  Re5 {[%clk 0:01:33]} 19. Rad1 {[%clk 0:02:36]}  Rhe8 {[%clk 0:01:32]} 20. g4 {[%clk 0:02:26]}  h5 {[%clk 0:01:13]} 21. h3 {[%clk 0:02:21]}  hxg4 {[%clk 0:01:09]} 22. hxg4 {[%clk 0:02:21]}  Bxd5 {[%clk 0:01:09]} 23. Rxd5 {[%clk 0:02:20]}  Rh8 {[%clk 0:00:56]} 24. Rxe5 {[%clk 0:02:19]}  fxe5 {[%clk 0:00:56]} 25. Kg2 {[%clk 0:02:17]}  Bf6 {[%clk 0:00:47]} 26. Bf2 {[%clk 0:02:08]}  Rd8 {[%clk 0:00:44]} 27. Rxd8+ {[%clk 0:01:58]}  Kxd8 {[%clk 0:00:45]} 28. Kf1 {[%clk 0:01:53]}  Kd7 {[%clk 0:00:43]} 29. Ke2 {[%clk 0:01:53]}  Kc6 {[%clk 0:00:43]} 30. c4 {[%clk 0:01:49]}  Kd6 {[%clk 0:00:37]} 31. Kd3 {[%clk 0:01:49]}  Kc6 {[%clk 0:00:37]} 32. a3 {[%clk 0:01:49]}  Kd6 {[%clk 0:00:38]} 33. Kc3 {[%clk 0:01:44]}  Kc6 {[%clk 0:00:38]} 34. b4 {[%clk 0:01:34]}  cxb4+ {[%clk 0:00:38]} 35. axb4 {[%clk 0:01:34]}  Be7 {[%clk 0:00:21]} 36. Be3 {[%clk 0:01:26]}  Kd6 {[%clk 0:00:21]} 37. Bc1 {[%clk 0:01:06]}  Ke6 {[%clk 0:00:21]} 38. Ba3 {[%clk 0:00:57]}  Bf8 {[%clk 0:00:13]} 39. b5 {[%clk 0:00:44]}  axb5 {[%clk 0:00:01]} 40. Bxf8 {[%clk 0:00:43]}  bxc4 {[%clk 0:00:01]} 41. Kxc4 {[%clk 0:00:44]}  c6 {[%clk 0:00:00]} 42. Ba3 {[%clk 0:00:41]} 1-0


[Site "https://www.chess.com"]

[Event "Titled Tuesday Blitz May 30 Early 2023"]
[White "Garakov, Mikhael"]
[Black "Al-Tarboush, Ward"]
[WhiteFideId "4169034"]
[BlackFideId "7601450"]
[WhiteElo "2347"]
[BlackElo "2265"]
[Result "0-1"]
[Round "08"]
[TimeControl "180+2"]
[Date "2023.05.30"]
[WhiteClock "0:00:03"]
[BlackClock "0:00:02"]

1. e4 {[%clk 0:03:00]}  e6 {[%clk 0:02:59]} 2. d4 {[%clk 0:03:00]}  d5 {[%clk 0:03:00]} 3. Nc3 {[%clk 0:03:00]}  Nf6 {[%clk 0:03:00]} 4. e5 {[%clk 0:03:00]}  Nfd7 {[%clk 0:03:00]} 5. f4 {[%clk 0:03:01]}  c5 {[%clk 0:03:00]} 6. Nf3 {[%clk 0:03:02]}  Nc6 {[%clk 0:03:01]} 7. Be3 {[%clk 0:03:02]}  a6 {[%clk 0:03:01]} 8. Qd2 {[%clk 0:03:02]}  b5 {[%clk 0:03:01]} 9. a3 {[%clk 0:03:03]}  Bb7 {[%clk 0:03:00]} 10. Be2 {[%clk 0:02:59]}  Qb6 {[%clk 0:02:56]} 11. dxc5 {[%clk 0:02:57]}  Bxc5 {[%clk 0:02:54]} 12. Bxc5 {[%clk 0:02:39]}  Nxc5 {[%clk 0:02:54]} 13. Qe3 {[%clk 0:02:07]}  d4 {[%clk 0:02:54]} 14. Nxd4 {[%clk 0:02:06]}  Nxd4 {[%clk 0:02:55]} 15. Qxd4 {[%clk 0:02:06]}  Rd8 {[%clk 0:02:55]} 16. Qf2 {[%clk 0:02:00]}  b4 {[%clk 0:02:48]} 17. axb4 {[%clk 0:01:39]}  Qxb4 {[%clk 0:02:49]} 18. O-O {[%clk 0:01:28]}  O-O {[%clk 0:02:49]} 19. Na2 {[%clk 0:01:05]}  Qd4 {[%clk 0:02:06]} 20. Rfd1 {[%clk 0:00:50]}  Qxf2+ {[%clk 0:02:03]} 21. Kxf2 {[%clk 0:00:51]}  Ne4+ {[%clk 0:01:57]} 22. Ke3 {[%clk 0:00:50]}  g5 {[%clk 0:01:43]} 23. g3 {[%clk 0:00:49]}  Rc8 {[%clk 0:01:22]} 24. Nb4 {[%clk 0:00:47]}  Nc5 {[%clk 0:01:16]} 25. c3 {[%clk 0:00:36]}  f6 {[%clk 0:01:08]} 26. Nxa6 {[%clk 0:00:31]}  fxe5 {[%clk 0:00:54]} 27. fxe5 {[%clk 0:00:29]}  Nb3 {[%clk 0:00:43]} 28. Ra3 {[%clk 0:00:25]}  Nc5 {[%clk 0:00:36]} 29. Rd6 {[%clk 0:00:12]}  Rf5 {[%clk 0:00:24]} 30. Nxc5 {[%clk 0:00:12]}  Rxe5+ {[%clk 0:00:21]} 31. Kf2 {[%clk 0:00:10]}  Rf8+ {[%clk 0:00:15]} 32. Ke1 {[%clk 0:00:08]}  Bf3 {[%clk 0:00:06]} 33. Rxe6 {[%clk 0:00:08]}  Rxc5 {[%clk 0:00:05]} 34. Bxf3 {[%clk 0:00:07]}  Rxf3 {[%clk 0:00:06]} 35. Ke2 {[%clk 0:00:07]}  Rcf5 {[%clk 0:00:06]} 36. Kd2 {[%clk 0:00:07]}  Rd5+ {[%clk 0:00:05]} 37. Ke2 {[%clk 0:00:06]}  Rdf5 {[%clk 0:00:05]} 38. Re3 {[%clk 0:00:06]}  Rf2+ {[%clk 0:00:05]} 39. Kd3 {[%clk 0:00:06]}  Rxb2 {[%clk 0:00:05]} 40. h4 {[%clk 0:00:03]}  g4 {[%clk 0:00:04]} 41. Ra7 {[%clk 0:00:02]}  Rb8 {[%clk 0:00:02]} 42. Re4 {[%clk 0:00:02]}  Rf3+ {[%clk 0:00:02]} 43. Re3 {[%clk 0:00:03]}  Rd8+ {[%clk 0:00:01]} 44. Ke2 {[%clk 0:00:04]}  Rdf8 {[%clk 0:00:01]} 45. Rxf3 {[%clk 0:00:03]}  Rxf3 {[%clk 0:00:02]} 46. Ra4 {[%clk 0:00:02]}  Rxg3 {[%clk 0:00:03]} 47. Kf2 {[%clk 0:00:03]}  Rf3+ {[%clk 0:00:03]} 48. Kg2 {[%clk 0:00:02]}  h5 {[%clk 0:00:04]} 49. Rc4 {[%clk 0:00:02]}  Kg7 {[%clk 0:00:03]} 50. Rc5 {[%clk 0:00:02]}  Kg6 {[%clk 0:00:04]} 51. Rg5+ {[%clk 0:00:03]}  Kh6 {[%clk 0:00:04]} 52. Rc5 {[%clk 0:00:03]}  Rd3 {[%clk 0:00:05]} 53. Rc6+ {[%clk 0:00:03]}  Kg7 {[%clk 0:00:04]} 54. Rc5 {[%clk 0:00:04]}  Kg6 {[%clk 0:00:04]} 55. Rg5+ {[%clk 0:00:04]}  Kh6 {[%clk 0:00:04]} 56. Rc5 {[%clk 0:00:05]}  Rh3 {[%clk 0:00:04]} 57. Rc6+ {[%clk 0:00:05]}  Kg7 {[%clk 0:00:04]} 58. Rc5 {[%clk 0:00:05]}  Rxh4 {[%clk 0:00:04]} 59. Kg3 {[%clk 0:00:04]}  Rh3+ {[%clk 0:00:04]} 60. Kf4 {[%clk 0:00:05]}  Kh6 {[%clk 0:00:02]} 61. Rc6+ {[%clk 0:00:05]}  Kg7 {[%clk 0:00:02]} 62. Kg5 {[%clk 0:00:05]}  g3 {[%clk 0:00:03]} 63. Kf4 {[%clk 0:00:05]}  Kf7 {[%clk 0:00:02]} 64. Kf3 {[%clk 0:00:05]}  h4 {[%clk 0:00:02]} 65. Rc4 {[%clk 0:00:05]}  Rh2 {[%clk 0:00:03]} 66. Rf4+ {[%clk 0:00:04]}  Ke6 {[%clk 0:00:03]} 67. Re4+ {[%clk 0:00:05]}  Kd6 {[%clk 0:00:03]} 68. Rg4 {[%clk 0:00:05]}  Kc5 {[%clk 0:00:02]} 69. c4 {[%clk 0:00:05]}  Rf2+ {[%clk 0:00:03]} 70. Ke3 {[%clk 0:00:06]}  Rh2 {[%clk 0:00:03]} 71. Kd3 {[%clk 0:00:05]}  g2 {[%clk 0:00:03]} 72. Ke2 {[%clk 0:00:03]}  g1=Q+ {[%clk 0:00:02]} 0-1


[Site "https://www.chess.com"]

[Event "Titled Tuesday Blitz May 30 Early 2023"]
[White "Iskusnyh, Sergei"]
[Black "Liu, Casper"]
[WhiteFideId "4120027"]
[BlackFideId "1454153"]
[WhiteElo "2492"]
[BlackElo "2221"]
[Result "1-0"]
[Round "08"]
[TimeControl "180+2"]
[Date "2023.05.30"]
[WhiteClock "0:00:09"]
[BlackClock "0:00:14"]

1. d4 {[%clk 0:03:00]}  d5 {[%clk 0:02:53]} 2. c4 {[%clk 0:02:59]}  dxc4 {[%clk 0:02:54]} 3. e3 {[%clk 0:02:59]}  a6 {[%clk 0:02:53]} 4. Bxc4 {[%clk 0:02:58]}  Nf6 {[%clk 0:02:53]} 5. Nf3 {[%clk 0:02:57]}  Nc6 {[%clk 0:02:52]} 6. Ng5 {[%clk 0:02:36]}  e6 {[%clk 0:02:51]} 7. Nc3 {[%clk 0:02:35]}  b5 {[%clk 0:02:48]} 8. Be2 {[%clk 0:02:30]}  Bb7 {[%clk 0:02:48]} 9. Bf3 {[%clk 0:02:22]}  Bd6 {[%clk 0:02:40]} 10. O-O {[%clk 0:02:19]}  O-O {[%clk 0:02:39]} 11. Bd2 {[%clk 0:02:09]}  e5 {[%clk 0:02:30]} 12. Rc1 {[%clk 0:01:45]}  Rb8 {[%clk 0:01:51]} 13. d5 {[%clk 0:01:22]}  Ne7 {[%clk 0:01:50]} 14. e4 {[%clk 0:01:17]}  h6 {[%clk 0:01:48]} 15. Nh3 {[%clk 0:01:16]}  g5 {[%clk 0:01:49]} 16. Kh1 {[%clk 0:01:09]}  Bc8 {[%clk 0:01:43]} 17. Ng1 {[%clk 0:01:08]}  Ng6 {[%clk 0:01:24]} 18. g3 {[%clk 0:01:04]}  Kh7 {[%clk 0:01:22]} 19. Bg2 {[%clk 0:01:02]}  Bc5 {[%clk 0:01:05]} 20. Na4 {[%clk 0:00:51]}  Ba7 {[%clk 0:01:04]} 21. Nc5 {[%clk 0:00:51]}  Qd6 {[%clk 0:00:59]} 22. b4 {[%clk 0:00:50]}  c6 {[%clk 0:00:33]} 23. dxc6 {[%clk 0:00:49]}  Qxc6 {[%clk 0:00:34]} 24. Qc2 {[%clk 0:00:37]}  Bg4 {[%clk 0:00:28]} 25. f3 {[%clk 0:00:36]}  Be6 {[%clk 0:00:27]} 26. Nxe6 {[%clk 0:00:33]}  Qxe6 {[%clk 0:00:27]} 27. Qc6 {[%clk 0:00:20]}  Rfe8 {[%clk 0:00:19]} 28. Bh3 {[%clk 0:00:19]}  g4 {[%clk 0:00:18]} 29. Qxe6 {[%clk 0:00:16]}  Rxe6 {[%clk 0:00:16]} 30. Bxg4 {[%clk 0:00:17]}  Rd6 {[%clk 0:00:12]} 31. Bc3 {[%clk 0:00:16]}  Nxg4 {[%clk 0:00:10]} 32. fxg4 {[%clk 0:00:16]}  Rd7 {[%clk 0:00:10]} 33. Nf3 {[%clk 0:00:14]}  f6 {[%clk 0:00:06]} 34. Nh4 {[%clk 0:00:14]}  Nxh4 {[%clk 0:00:03]} 35. gxh4 {[%clk 0:00:15]}  Kg7 {[%clk 0:00:04]} 36. g5 {[%clk 0:00:15]}  hxg5 {[%clk 0:00:04]} 37. hxg5 {[%clk 0:00:15]}  Rh8 {[%clk 0:00:05]} 38. gxf6+ {[%clk 0:00:14]}  Kg6 {[%clk 0:00:05]} 39. Bxe5 {[%clk 0:00:14]}  Rdh7 {[%clk 0:00:06]} 40. Rg1+ {[%clk 0:00:14]}  Kf7 {[%clk 0:00:06]} 41. Rc7+ {[%clk 0:00:14]}  Ke6 {[%clk 0:00:07]} 42. Rxh7 {[%clk 0:00:14]}  Rxh7 {[%clk 0:00:08]} 43. Bc3 {[%clk 0:00:13]}  Bb8 {[%clk 0:00:08]} 44. Rg2 {[%clk 0:00:13]}  Be5 {[%clk 0:00:08]} 45. Bxe5 {[%clk 0:00:12]}  Kxe5 {[%clk 0:00:09]} 46. Rf2 {[%clk 0:00:12]}  Rf7 {[%clk 0:00:09]} 47. Kg2 {[%clk 0:00:12]}  Kxe4 {[%clk 0:00:10]} 48. Kg3 {[%clk 0:00:12]}  Kd4 {[%clk 0:00:10]} 49. Kg4 {[%clk 0:00:12]}  Kc3 {[%clk 0:00:11]} 50. Kf5 {[%clk 0:00:12]}  Kxb4 {[%clk 0:00:11]} 51. Ke6 {[%clk 0:00:12]}  Rf8 {[%clk 0:00:10]} 52. f7 {[%clk 0:00:12]}  Ra8 {[%clk 0:00:11]} 53. f8=Q+ {[%clk 0:00:10]}  Rxf8 {[%clk 0:00:11]} 54. Rxf8 {[%clk 0:00:10]}  a5 {[%clk 0:00:12]} 55. Rf3 {[%clk 0:00:08]}  a4 {[%clk 0:00:12]} 56. h4 {[%clk 0:00:08]}  a3 {[%clk 0:00:12]} 57. h5 {[%clk 0:00:09]}  Ka4 {[%clk 0:00:13]} 58. h6 {[%clk 0:00:09]}  b4 {[%clk 0:00:14]} 59. h7 {[%clk 0:00:09]}  b3 {[%clk 0:00:14]} 60. Rxb3 {[%clk 0:00:09]} 1-0


[Site "https://www.chess.com"]

[Event "Titled Tuesday Blitz May 30 Early 2023"]
[White "MKlose11"]
[Black "Degenbaev, Aziz"]
[BlackFideId "13802640"]
[WhiteElo "2611"]
[BlackElo "2152"]
[Result "1-0"]
[Round "08"]
[TimeControl "180+2"]
[Date "2023.05.30"]
[WhiteClock "0:00:22"]
[BlackClock "0:00:02"]

1. e4 {[%clk 0:03:00]}  c5 {[%clk 0:02:59]} 2. Nc3 {[%clk 0:02:59]}  d6 {[%clk 0:02:57]} 3. d3 {[%clk 0:02:59]}  Nc6 {[%clk 0:02:54]} 4. g3 {[%clk 0:03:00]}  g6 {[%clk 0:02:54]} 5. Be3 {[%clk 0:03:00]}  Bg7 {[%clk 0:02:55]} 6. Qe2 {[%clk 0:03:00]}  e6 {[%clk 0:02:55]} 7. Qd2 {[%clk 0:03:00]}  a6 {[%clk 0:02:49]} 8. Bg2 {[%clk 0:03:00]}  Rb8 {[%clk 0:02:49]} 9. Nge2 {[%clk 0:02:59]}  b5 {[%clk 0:02:48]} 10. O-O {[%clk 0:02:59]}  b4 {[%clk 0:02:45]} 11. Nd1 {[%clk 0:03:00]}  Nge7 {[%clk 0:02:44]} 12. Bh6 {[%clk 0:02:59]}  O-O {[%clk 0:02:43]} 13. Bxg7 {[%clk 0:03:00]}  Kxg7 {[%clk 0:02:44]} 14. Ne3 {[%clk 0:03:00]}  Nd4 {[%clk 0:02:40]} 15. f4 {[%clk 0:02:58]}  a5 {[%clk 0:02:37]} 16. g4 {[%clk 0:02:58]}  f5 {[%clk 0:02:36]} 17. gxf5 {[%clk 0:02:54]}  exf5 {[%clk 0:02:37]} 18. Ng3 {[%clk 0:02:55]}  Be6 {[%clk 0:02:22]} 19. Rad1 {[%clk 0:02:53]}  d5 {[%clk 0:02:19]} 20. c3 {[%clk 0:02:51]}  bxc3 {[%clk 0:02:04]} 21. bxc3 {[%clk 0:02:52]}  Ndc6 {[%clk 0:01:59]} 22. exf5 {[%clk 0:02:39]}  Nxf5 {[%clk 0:01:57]} 23. Ngxf5+ {[%clk 0:02:38]}  gxf5 {[%clk 0:01:53]} 24. d4 {[%clk 0:02:38]}  c4 {[%clk 0:01:45]} 25. Rde1 {[%clk 0:02:34]}  Rf6 {[%clk 0:01:42]} 26. Bf3 {[%clk 0:02:31]}  Ne7 {[%clk 0:01:39]} 27. Kh1 {[%clk 0:02:25]}  Kh8 {[%clk 0:01:36]} 28. Rg1 {[%clk 0:02:23]}  Qd6 {[%clk 0:01:35]} 29. Ng2 {[%clk 0:02:13]}  a4 {[%clk 0:01:29]} 30. Re5 {[%clk 0:02:11]}  a3 {[%clk 0:01:29]} 31. Qe3 {[%clk 0:02:09]}  Ng6 {[%clk 0:01:26]} 32. Bh5 {[%clk 0:02:09]}  Rb2 {[%clk 0:01:13]} 33. Bxg6 {[%clk 0:02:09]}  Rxg6 {[%clk 0:01:09]} 34. Nh4 {[%clk 0:02:06]}  Rxg1+ {[%clk 0:01:07]} 35. Kxg1 {[%clk 0:01:59]}  Bd7 {[%clk 0:01:02]} 36. Re8+ {[%clk 0:01:34]}  Kg7 {[%clk 0:01:02]} 37. Qe7+ {[%clk 0:01:29]}  Qxe7 {[%clk 0:01:03]} 38. Rxe7+ {[%clk 0:01:30]}  Kf6 {[%clk 0:01:03]} 39. Rxd7 {[%clk 0:01:30]}  Rxa2 {[%clk 0:01:04]} 40. Ra7 {[%clk 0:01:24]}  Ra1+ {[%clk 0:01:01]} 41. Kg2 {[%clk 0:01:24]}  Ra2+ {[%clk 0:01:00]} 42. Kg3 {[%clk 0:01:24]}  Ra1 {[%clk 0:00:55]} 43. Ng2 {[%clk 0:01:11]}  a2 {[%clk 0:00:50]} 44. Kf2 {[%clk 0:01:08]}  Ke6 {[%clk 0:00:45]} 45. Ne3 {[%clk 0:01:07]}  h5 {[%clk 0:00:45]} 46. Ra6+ {[%clk 0:01:06]}  Kd7 {[%clk 0:00:44]} 47. Nc2 {[%clk 0:01:03]}  Rh1 {[%clk 0:00:41]} 48. Rxa2 {[%clk 0:01:03]}  Rxh2+ {[%clk 0:00:41]} 49. Kg3 {[%clk 0:01:04]}  Rd2 {[%clk 0:00:37]} 50. Nb4 {[%clk 0:01:03]}  Rd1 {[%clk 0:00:33]} 51. Nxd5 {[%clk 0:01:02]}  Kd6 {[%clk 0:00:33]} 52. Nb4 {[%clk 0:01:01]}  Rg1+ {[%clk 0:00:32]} 53. Kh4 {[%clk 0:00:56]}  Rh1+ {[%clk 0:00:31]} 54. Kg5 {[%clk 0:00:55]}  h4 {[%clk 0:00:31]} 55. Kxf5 {[%clk 0:00:56]}  h3 {[%clk 0:00:30]} 56. Kg4 {[%clk 0:00:55]}  Rc1 {[%clk 0:00:27]} 57. Kxh3 {[%clk 0:00:50]}  Rxc3+ {[%clk 0:00:27]} 58. Kg4 {[%clk 0:00:51]}  Rb3 {[%clk 0:00:27]} 59. Ra6+ {[%clk 0:00:44]}  Kc7 {[%clk 0:00:23]} 60. Rc6+ {[%clk 0:00:43]}  Kd7 {[%clk 0:00:21]} 61. Rxc4 {[%clk 0:00:44]}  Kd6 {[%clk 0:00:21]} 62. d5 {[%clk 0:00:42]}  Rb1 {[%clk 0:00:20]} 63. Kf5 {[%clk 0:00:34]}  Rh1 {[%clk 0:00:09]} 64. Rc6+ {[%clk 0:00:34]}  Kd7 {[%clk 0:00:10]} 65. Nd3 {[%clk 0:00:33]}  Rh5+ {[%clk 0:00:10]} 66. Ke4 {[%clk 0:00:33]}  Rh1 {[%clk 0:00:09]} 67. Ne5+ {[%clk 0:00:33]}  Kd8 {[%clk 0:00:09]} 68. d6 {[%clk 0:00:32]}  Re1+ {[%clk 0:00:09]} 69. Kf5 {[%clk 0:00:32]}  Re2 {[%clk 0:00:08]} 70. Ke6 {[%clk 0:00:31]}  Re1 {[%clk 0:00:05]} 71. Ra6 {[%clk 0:00:31]}  Kc8 {[%clk 0:00:02]} 72. d7+ {[%clk 0:00:30]}  Kc7 {[%clk 0:00:02]} 73. Ra8 {[%clk 0:00:27]}  Rxe5+ {[%clk 0:00:01]} 74. fxe5 {[%clk 0:00:26]}  Kb7 {[%clk 0:00:02]} 75. d8=Q {[%clk 0:00:25]}  Kc6 {[%clk 0:00:02]} 76. Qd5+ {[%clk 0:00:23]}  Kb6 {[%clk 0:00:02]} 77. Rb8+ {[%clk 0:00:23]}  Ka6 {[%clk 0:00:02]} 78. Qa8# {[%clk 0:00:22]} 1-0


[Site "https://www.chess.com"]